Cogmind - Beta 9 @@@ ROGUE MODE // 2019.10.23 @ 17:12:12 // Halloween2019/Abominations Player: Nikolayag Result: Destroyed by Lesser Abomination with Etherial Claws Performance ------------- Evolutions (0) 0 Regions Visited (1) 200 Robots Destroyed (2) 10 Value Destroyed (66) 66 Prototype IDs (0) 0 Alien Tech Used (0) 0 Bonus (0) 0 TOTAL SCORE: 276 Bonus ------- None Cogmind --------- Core Integrity 0/250 Matter 229/300 Energy 88/100 System Corruption 3% Temperature Cool (22) Location -10/Materials Parts ------- Power (1) Propulsion (2) Light Treads Utility (2) Small Storage Unit Small Storage Unit Weapon (2) Medium Laser Inventory (8) Light Ion Engine Light Ion Engine Wheel Peak State ------------ Power Light Ion Engine Propulsion Light Treads Compact Wheel Utility Small Storage Unit Small Storage Unit Weapon Small Laser Light Assault Rifle Inventory Light Ion Engine Light Treads Wheel Medium Laser [Rating: 7] Favorites ----------- Power Light Ion Engine Engine Light Ion Engine Propulsion Light Treads Treads Light Treads Wheel Compact Wheel Utility Small Storage Unit Storage Small Storage Unit Weapon Light Assault Rifle Energy Gun Small Laser Ballistic Gun Light Assault Rifle Build | -11 -10 ------- Run | Scr Mat Slots Evolved . | . . Power . | . . Propulsion . | . . Utility . | . . Weapon . | . . Parts Attached 9 | 7 2 Power 1 | 1 . Engine 1 | 1 . Core . | . . Reactor . | . . Propulsion 3 | 2 1 Treads 2 | 1 1 Leg . | . . Wheel 1 | 1 . Hover . | . . Flight . | . . Utility 2 | 2 . Device . | . . Storage 2 | 2 . Processor . | . . Hackware . | . . Protection . | . . Artifact . | . . Weapon 3 | 2 1 Energy Gun 2 | 1 1 Energy Cannon . | . . Ballistic Gun 1 | 1 . Ballistic Cannon . | . . Launcher . | . . Special Weapon . | . . Impact Weapon . | . . Slashing Weapon . | . . Piercing Weapon . | . . Special Melee Weapon . | . . Unidentified Prototypes . | . . Parts Lost 5 | . 5 Power 1 | . 1 Propulsion 2 | . 2 Utility . | . . Weapon 2 | . 2 Highest Loss Streak 5 | . 5 Average Slot Usage (%) 98 | . 98 Engine 13 | . 13 Treads 15 | . 15 Wheel 12 | . 12 Storage 28 | . 28 Energy Gun 13 | . 13 Ballistic Gun 14 | . 14 Naked Turns . | . . Heaviest Build 13 | 13 13 Greatest Support 20 | 20 16 Greatest Overweight (x) . | . . Average Overweight (x) . | . . Largest Inventory Capacity 8 | 8 8 Average Capacity 7 | 5 8 Most Carried 5 | 5 5 Average Carried 4 | 2 4 Final Capacity 8 | . 8 Final Carried 3 | . 3 Class Distribution -------------------- 100% | Mutant Dominant Class ---------------- Mutant | -10/Materials Resources | -11 -10 ----------- Run | Scr Mat Matter Collected 224 | 224 . Remotely . | . . Salvage Created 120 | 67 53 Parts 6 | 3 3 Haulers Intercepted . | . . Recyclers Shooed . | . . Parts Field Recycled . | . . Retrieved Matter . | . . Parts Self-Destructed . | . . Prevented . | . . Kills | -11 -10 ------- Run | Scr Mat Combat Hostiles Destroyed 1 | . 1 Guns 1 | . 1 Classes Destroyed 2 | 1 1 Recycler 1 | 1 . Abomination 1 | . 1 Best Kill Streak 1 | 1 1 Combat Bots Only 1 | . 1 Max Kills in Single Turn 1 | 1 1 Gunslinging . | . . Exploded . | . . Melee . | . . Uniques/NPCs Destroyed . | . . Combat | -11 -10 -------- Run | Scr Mat Damage Taken 832 | . 832 Core 278 | . 278 Absorbed by Shields . | . . Core Remaining (%) 100 | 100 . Volleys Fired 31 | 6 25 Largest 2 | 2 2 Hottest 70 | 60 70 Shots Fired 57 | 12 45 Gun 57 | 12 45 Cannon . | . . Launcher . | . . Special . | . . Kinetic 30 | 6 24 Thermal 27 | 6 21 Explosive . | . . Electromagnetic . | . . Robot Hit Streak 15 | 7 15 Robot Miss Streak 4 | 4 1 Penetration Max . | . . Secondary Targets 1 | . 1 Max Gunslinging Chain 1 | . 1 Shots Hit Robots 38 | 7 31 Core Hits 7 | 2 5 Critical Hits . | . . Critical Kills . | . . Critical Parts Destroyed . | . . Melee Attacks . | . . Impact . | . . Slashing . | . . Piercing . | . . Sneak Attacks . | . . Combat Hostiles . | . . Follow-up Attacks . | . . Damage Inflicted 418 | 84 334 Guns 418 | 84 334 Cannons . | . . Explosions . | . . Melee . | . . Ramming . | . . Kinetic 170 | 27 143 Thermal 248 | 57 191 Explosive . | . . Electromagnetic . | . . Impact . | . . Slashing . | . . Piercing . | . . Highest Corruption 3 | . 3 Average Corruption 2 | . 2 Corruption Purged . | . . Overload Shots . | . . Overflow Damage . | . . Projectiles . | . . Explosions . | . . Melee . | . . Knockbacks . | . . Impact . | . . Kinetic . | . . Secondary . | . . Self-Inflicted Damage . | . . Shots . | . . Rammed . | . . Targets Rammed . | . . Kicked . | . . Crushed . | . . Highest Temperature 108 | 40 108 Average Temperature 39 | 18 43 Received Heat Transfer 102 | . 102 Siege Activations . | . . Robots Corrupted . | . . Combat Hostiles . | . . Parts Fried . | . . Impact Corruptions . | . . Robots Melted . | . . Combat Hostiles . | . . Parts Melted . | . . Heat Transferred 218 | 125 93 Parts Sabotaged . | . . Parts Stolen . | . . Parts Stripped . | . . Power Chain Reactions . | . . Missiles Intercepted . | . . Alert | -11 -10 ------- Run | Scr Mat Peak Influence 5 | 5 3 Average Influence 2 | 1 2 Maximum Alert Level . | . . Low Security (%) 100 | . . Level 1 . | . . Level 2 . | . . Level 3 . | . . Level 4 . | . . Level 5 . | . . High Security . | . . Max Security . | . . Squads Dispatched . | . . Investigation . | . . Extermination . | . . Reinforcement . | . . Assault . | . . Garrison . | . . Intercept . | . . Construction Impeded . | . . Haulers Reinforced . | . . Stealth | -11 -10 --------- Run | Scr Mat Distress Signals . | . . Communications Jammed . | . . Distress Signals . | . . Times Spotted 5 | . 5 Peak Tracking Total 3 | . 3 Tactical Retreats 1 | . 1 Traps | -11 -10 ------- Run | Scr Mat Traps Triggered . | . . Indirectly . | . . Trap Hack Attempts . | . . Triggered . | . . Disarmed . | . . Reprogrammed . | . . Reused . | . . Traps Extracted . | . . Installed . | . . Triggered . | . . Machines | -11 -10 ---------- Run | Scr Mat Machines Disabled . | . . Max in Single Turn . | . . Machines Sabotaged . | . . Garrisons Compromised . | . . Overloaded Fab Kills . | . . Fab Network Shutdowns . | . . Hacking | -11 -10 --------- Run | Scr Mat Machines Accessed . | . . Terminals . | . . Fabricators . | . . Repair Stations . | . . Recycling Units . | . . Scanalyzers . | . . Garrison Access . | . . Total Hacks . | . . Successful . | . . Failed . | . . Catastrophic . | . . Database Lockouts . | . . Manual . | . . Terminals . | . . Fabricators . | . . Repair Stations . | . . Recycling Units . | . . Scanalyzers . | . . Garrison Access . | . . Terminal Hacks . | . . Fabricator Hacks . | . . Repair Station Hacks . | . . Recycling Unit Hacks . | . . Scanalyzer . | . . Garrison Access Hacks . | . . Unauthorized Hacks . | . . Terminals . | . . Fabricators . | . . Repair Stations . | . . Recycling Units . | . . Scanalyzers . | . . Garrison Access . | . . Data Cores Recovered . | . . Used . | . . Hacking Detections . | . . Full Trace Events . | . . Feedback Events . | . . Feedback Blocked . | . . Robot Schematics Acquired . | . . Robots Built . | . . Matter . | . . Time . | . . Total Robot Build Rating . | . . Part Schematics Acquired . | . . Parts Built . | . . Matter . | . . Time . | . . Total Part Build Rating . | . . Parts Repaired . | . . Time . | . . Parts Recycled . | . . Recycled Matter . | . . Retrieved Matter . | . . Retrieved Components . | . . Parts Scanalyzed . | . . Part Schematics Acquired . | . . Parts Damaged . | . . Bothacking | -11 -10 ------------ Run | Scr Mat Used RIF Installer . | . . Robots Hacked . | . . Non-combat . | . . Combat . | . . Robot Hacks Applied . | . . Relay Couplers Released . | . . Robots Rewired . | . . Allies Hacked . | . . Hacks Repelled . | . . Allies | -11 -10 -------- Run | Scr Mat Total Allies . | . . Largest Group . | . . Highest-Rated Group . | . . Highest-Rated Ally . | . . Total Orders . | . . Ally Attacks . | . . Total Damage . | . . Kills . | . . Allies Corrupted . | . . Allies Melted . | . . Intel | -11 -10 ------- Run | Scr Mat Robot Analysis Total . | . . Derelict Logs Recovered . | . . Drone Launches . | . . Drone Recoveries . | . . Exploration | -11 -10 ------------- Run | Scr Mat Turns Passed 277 | 87 190 Spaces Moved 124 | 57 67 Core 9 | 9 . Treads 4 | 4 . Legs . | . . Wheels 111 | 44 67 Hover . | . . Flight . | . . Fastest Speed 50 | 50 100 Average Speed 98 | 96 100 Slowest Speed 160 | 160 100 Overloaded Moves . | . . Propulsion Burnouts . | . . Robots Hopped . | . . Cave-ins Triggered . | . . Exploration Rate (%) 9 | 4 14 Regions Visited 1 Branch Regions . Pre-discovered Areas . | . . Known Exits Taken . | . . Unknown Exits Taken 1 | 1 . Scrap Searched . | . . Spaces Dug . | . . Terrain Destroyed . | . . Melee . | . . Projectile . | . . AOE . | . . Actions | -11 -10 --------- Run | Scr Mat Total 225 | 75 150 Wait 56 | . 56 Move 123 | 56 67 Hop . | . . Pick Up 6 | 6 . Fast Attach 6 | 6 . Attach 3 | 1 2 Detach . | . . Swap . | . . Drop . | . . Fire 31 | 6 25 Melee . | . . Ram . | . . Kick . | . . Crush . | . . Escape Stasis . | . . Rewire . | . . Trap . | . . Miscellaneous . | . . Route ------- -11/Scrapyard -10/Materials History --------- Turn | Location | Event 8 | -11/Scrapyard | Discovered new exit (range 16) 88 | -11/Scrapyard | Entered Materials 265 | -10/Materials | Core integrity fell below 50% 274 | -10/Materials | Core integrity fell below 20% 278 | -10/Materials | Destroyed by Lesser Abomination with Etherial Claws Last Messages --------------- LOCATION=UNKNOWN GOAL=ESCAPE 00088_ ALERT: A rogue bot has emerged from the scrapyard. Terminate on contact. 00091_ ALERT: Unidentified virus spreading, local system control compromised. 00096_ ALERT: Virus reaching critical density, losing system control. 00114_ K-01 Serf cleans the Matter Filter. 00121_ R-06 Scavenger destroyed. 00125_ K-01 Serf collects debris. 00237_ Purification Channel disabled. 00251_ Com. Wheel destroyed. 00260_ Lesser Abomination destroyed. 00260_ Switching to secondary target: Lesser Abomination. 00261_ Sml. Laser destroyed. 00269_ Lgt. Ion Engine destroyed. 00271_ Destroyed Sml. Matter Pod. 00272_ Lesser Abomination absorbs Sml. Battery. 00275_ Lgt. Assault Rifle destroyed. 00275_ Lgt. Treads destroyed. Map ----- +----------------------------------------------------+ | ???? #? #??????????????????? | | ?????? #? #??????????????????? | | ?????###+## #??????????????????? | | ##### +??????????????????? | | #####??????????????????? | | #??????????????????????? | | #??????????????????????? | | ##### #??????????????????????? | | ?????# ###??????????????????????? | | ?????# #????????????????????????? | | ?????# #????????????????????????? | | ?????# #????????????????????????? | | ?????# #????????????????????????? | | ?????# #????????????????????????? | | ?????# #????????????????????????? | | ????## ##???????????????????????? | | ????# ###############?????????? | | ????# #?????????? | | ????# #?????????? | | ????# #?????????? | | ????# ##########+#######??????? | | ????#######???# #??????? | | ??????????????# #??????? | | ??????????????# " """" #??????? | | ??????????????# """"""""AA#??????? | | ??????????????# """ """@!#??????? | | ??????????????##############??????? | | | | | | | | | | | | | | | | | | | | | | | | | | | | | | | | | | | | | | | | | | | | | | | +----------------------------------------------------+ Best States ------------- Heat Dissipation 25 Energy Generation 10 Energy Capacity 125 Matter Stores 248 Matter Capacity 300 Sight Range 16 Terrain Scan Density 10 Evasion (%) 50 Recoil Reduction 2 Item Schematics ----------------- None Robot Schematics ------------------ None Fabricated ------------ Nothing Alien Tech Used ----------------- None Achievements -------------- None Challenges ------------ None Game ------ Seed HoverLinkedTorch Manual? 0 Play Time 00:02:52 Cumulative 158.8 hours Start 2019.10.23 @ 17:10:15 End 2019.10.23 @ 17:12:12 Sessions 1 Manual Loads 0 Difficulty Rogue Special Mode Halloween2019/Abominations Game No. 170 Rogue 170 Adventurer 0 Explorer 0 Win Type - Total 3 Types 3/0/0/0/0/0/0 Lore% 48 Gallery% 67 Achievement% 42 Wizard Run 0 Options --------- ASCII 0 Keyboard 1 Movement Numpad Keybinds 0 Fullscreen 1 Font 18/SmallcapsGlow Map View 76x50 Tactical HUD 1 Map Filters NONE Filters NONE Steam 1 RUN: 1c343dd2-25d2-4b5d-91f4-a17095b27b58